[Event "Early-Titled-Tuesday-Blitz-September-05-2023"]
[Site "Chess.com"]
[Date "2023.09.05"]
[Round "5"]
[White "Flaccidmoves"]
[Black "suspiciumchess"]
[Result "1-0"]
[WhiteElo "2477"]
[BlackElo "2281"]
[TimeControl "180+1"]
[EndTime "8:55:07 PDT"]
[Termination "Flaccidmoves won by checkmate"]

1. e4 {[%clk 0:03:00.9]} 1... c5 {[%clk 0:02:49.2]} 2. Nf3 {[%clk 0:03:01.1]}
2... d6 {[%clk 0:02:47.7]} 3. d4 {[%clk 0:03:01.5]} 3... cxd4 {[%clk 0:02:48.6]}
4. Nxd4 {[%clk 0:03:02.1]} 4... Nf6 {[%clk 0:02:49.3]} 5. Nc3 {[%clk 0:03:02.6]}
5... a6 {[%clk 0:02:49.8]} 6. h3 {[%clk 0:03:03.1]} 6... e5 {[%clk 0:02:49]} 7.
Nde2 {[%clk 0:03:02.7]} 7... h5 {[%clk 0:02:48.5]} 8. Bg5 {[%clk 0:03:01.9]}
8... Be7 {[%clk 0:02:45.7]} 9. Ng3 {[%clk 0:02:47.2]} 9... g6 {[%clk 0:02:36.3]}
10. Bc4 {[%clk 0:02:41.1]} 10... b5 {[%clk 0:02:32.2]} 11. Bb3 {[%clk
0:02:40.8]} 11... Nbd7 {[%clk 0:02:25]} 12. a3 {[%clk 0:02:32.3]} 12... Bb7
{[%clk 0:02:24.8]} 13. Bxf6 {[%clk 0:02:27]} 13... Nxf6 {[%clk 0:02:24.3]} 14.
Nd5 {[%clk 0:02:27.7]} 14... h4 {[%clk 0:02:17]} 15. Nf1 {[%clk 0:02:27.1]}
15... Nxe4 {[%clk 0:02:10.5]} 16. Nfe3 {[%clk 0:02:25.4]} 16... f5 {[%clk
0:01:51]} 17. Qf3 {[%clk 0:02:13.7]} 17... Ng5 {[%clk 0:01:45.4]} 18. Nf6+
{[%clk 0:02:00.4]} 18... Bxf6 {[%clk 0:01:45.7]} 19. Qxb7 {[%clk 0:02:00.9]}
19... Rh7 {[%clk 0:01:46.2]} 20. Qc6+ {[%clk 0:01:55]} 20... Kf8 {[%clk
0:01:46.3]} 21. Nd5 {[%clk 0:01:48.4]} 21... Rc8 {[%clk 0:01:19.9]} 22. Qxa6
{[%clk 0:01:45.2]} 22... Rc5 {[%clk 0:01:04.2]} 23. O-O-O {[%clk 0:01:37.3]}
23... Ne4 {[%clk 0:00:50]} 24. f3 {[%clk 0:01:26.8]} 24... Bg5+ {[%clk
0:00:41.9]} 25. Kb1 {[%clk 0:01:25.7]} 25... Nf2 {[%clk 0:00:41.9]} 26. Rhf1
{[%clk 0:01:04.4]} 26... Nxd1 {[%clk 0:00:41.1]} 27. Rxd1 {[%clk 0:01:05.3]}
27... Rd7 {[%clk 0:00:28.7]} 28. f4 {[%clk 0:00:49.9]} 28... Be7 {[%clk
0:00:22.6]} 29. Nb6 {[%clk 0:00:30.2]} 29... Rdc7 {[%clk 0:00:20.6]} 30. fxe5
{[%clk 0:00:21.4]} 30... R7c6 {[%clk 0:00:15.1]} 31. exd6 {[%clk 0:00:16.9]}
31... Qxb6 {[%clk 0:00:15]} 32. dxe7+ {[%clk 0:00:15.4]} 32... Kxe7 {[%clk
0:00:15.9]} 33. Qa8 {[%clk 0:00:09.7]} 33... Re5 {[%clk 0:00:07.3]} 34. Qg8
{[%clk 0:00:09.2]} 34... Rd6 {[%clk 0:00:06.2]} 35. Qf7+ {[%clk 0:00:08.7]}
35... Kd8 {[%clk 0:00:06.7]} 36. Qg8+ {[%clk 0:00:04.2]} 36... Kc7 {[%clk
0:00:06.9]} 37. Qg7+ {[%clk 0:00:04.8]} 37... Kb8 {[%clk 0:00:06.4]} 38. Qxe5
{[%clk 0:00:05.1]} 38... Kc7 {[%clk 0:00:06.1]} 39. Qxd6+ {[%clk 0:00:05.6]}
39... Qxd6 {[%clk 0:00:06.4]} 40. Rxd6 {[%clk 0:00:06.5]} 40... Kxd6 {[%clk
0:00:07.3]} 41. Kc1 {[%clk 0:00:07.1]} 41... Ke5 {[%clk 0:00:08.2]} 42. Kd2
{[%clk 0:00:07.4]} 42... Kf4 {[%clk 0:00:09.1]} 43. Ke2 {[%clk 0:00:08]} 43...
Kg3 {[%clk 0:00:10]} 44. Kf1 {[%clk 0:00:08.5]} 44... g5 {[%clk 0:00:09.1]} 45.
Bd5 {[%clk 0:00:08.5]} 45... g4 {[%clk 0:00:09]} 46. hxg4 {[%clk 0:00:08.3]}
46... fxg4 {[%clk 0:00:09.9]} 47. b3 {[%clk 0:00:08.2]} 47... Kh2 {[%clk
0:00:09.9]} 48. a4 {[%clk 0:00:08.2]} 48... bxa4 {[%clk 0:00:09.9]} 49. bxa4
{[%clk 0:00:08.5]} 49... h3 {[%clk 0:00:06.4]} 50. gxh3 {[%clk 0:00:08.5]} 50...
gxh3 {[%clk 0:00:07.3]} 51. a5 {[%clk 0:00:08.6]} 51... Kg3 {[%clk 0:00:07.8]}
52. a6 {[%clk 0:00:09.2]} 52... Kh2 {[%clk 0:00:08.7]} 53. a7 {[%clk 0:00:09.6]}
53... Kg3 {[%clk 0:00:09.6]} 54. a8=Q {[%clk 0:00:09.6]} 54... Kh2 {[%clk
0:00:10.5]} 55. Qb8# {[%clk 0:00:09.9]} 1-0

[Event "Early-Titled-Tuesday-Blitz-September-05-2023"]
[Site "Chess.com"]
[Date "2023.09.05"]
[Round "5"]
[White "Jumbo"]
[Black "03revilo"]
[Result "0-1"]
[WhiteElo "2903"]
[BlackElo "2450"]
[TimeControl "180+1"]
[EndTime "8:55:10 PDT"]
[Termination "03revilo won by resignation"]

1. e4 {[%clk 0:02:56]} 1... c5 {[%clk 0:02:58.7]} 2. Nf3 {[%clk 0:02:56.2]} 2...
e6 {[%clk 0:02:58.6]} 3. d4 {[%clk 0:02:53.1]} 3... cxd4 {[%clk 0:02:58.5]} 4.
Nxd4 {[%clk 0:02:54]} 4... Nf6 {[%clk 0:02:59]} 5. Nc3 {[%clk 0:02:53.5]} 5...
Nc6 {[%clk 0:02:59.5]} 6. a3 {[%clk 0:02:46.6]} 6... d5 {[%clk 0:02:56.5]} 7.
Bb5 {[%clk 0:02:41.3]} 7... Bd7 {[%clk 0:02:54.8]} 8. exd5 {[%clk 0:02:41.7]}
8... exd5 {[%clk 0:02:53.5]} 9. O-O {[%clk 0:02:42.1]} 9... Be7 {[%clk
0:02:48.4]} 10. Be3 {[%clk 0:02:40.7]} 10... O-O {[%clk 0:02:47.9]} 11. Re1
{[%clk 0:02:38.2]} 11... Re8 {[%clk 0:02:47.1]} 12. h3 {[%clk 0:02:37.3]} 12...
h6 {[%clk 0:02:41.4]} 13. Nde2 {[%clk 0:02:16.5]} 13... Ne5 {[%clk 0:02:30.6]}
14. Bxd7 {[%clk 0:01:57.4]} 14... Qxd7 {[%clk 0:02:30.9]} 15. Nf4 {[%clk
0:01:57.9]} 15... Nc4 {[%clk 0:02:13.2]} 16. Ncxd5 {[%clk 0:01:54]} 16... Nxd5
{[%clk 0:02:12.9]} 17. Nxd5 {[%clk 0:01:54.9]} 17... Rad8 {[%clk 0:02:12.7]} 18.
Nxe7+ {[%clk 0:01:44.1]} 18... Qxe7 {[%clk 0:01:58.2]} 19. Qg4 {[%clk
0:01:44.4]} 19... Qe6 {[%clk 0:01:36.2]} 20. Bxa7 {[%clk 0:01:09.2]} 20... Qxe1+
{[%clk 0:01:26]} 21. Rxe1 {[%clk 0:01:08.2]} 21... Rxe1+ {[%clk 0:01:26.9]} 22.
Kh2 {[%clk 0:01:08.6]} 22... Nd2 {[%clk 0:01:26.5]} 23. h4 {[%clk 0:01:00.2]}
23... Re4 {[%clk 0:01:15.3]} 24. Qh5 {[%clk 0:00:42.4]} 24... Rd6 {[%clk
0:00:20.5]} 25. f3 {[%clk 0:00:23.7]} 25... Re2 {[%clk 0:00:15.9]} 26. Bc5
{[%clk 0:00:14.1]} 26... Rg6 {[%clk 0:00:15.1]} 27. Qxg6 {[%clk 0:00:10.4]}
27... fxg6 {[%clk 0:00:14.3]} 28. Kg1 {[%clk 0:00:10.2]} 28... Nc4 {[%clk
0:00:13.9]} 29. b3 {[%clk 0:00:10.7]} 29... Ne5 {[%clk 0:00:12.3]} 30. c4 {[%clk
0:00:10.2]} 30... Rb2 {[%clk 0:00:11.5]} 31. Bd4 {[%clk 0:00:09.6]} 31... Rb1+
{[%clk 0:00:11.6]} 32. Kh2 {[%clk 0:00:08.2]} 32... Nc6 {[%clk 0:00:11.8]} 33.
Bc5 {[%clk 0:00:07.1]} 33... Rxb3 {[%clk 0:00:11.6]} 34. Kg3 {[%clk 0:00:08]}
34... Kf7 {[%clk 0:00:11.5]} 35. Kf4 {[%clk 0:00:07.4]} 35... Ke6 {[%clk
0:00:11.6]} 36. Ke4 {[%clk 0:00:07.7]} 36... Rb2 {[%clk 0:00:10.6]} 37. g4
{[%clk 0:00:07.5]} 37... g5 {[%clk 0:00:11]} 38. hxg5 {[%clk 0:00:07.2]} 38...
hxg5 {[%clk 0:00:11.9]} 39. Be3 {[%clk 0:00:07.6]} 39... Rb3 {[%clk 0:00:11.8]}
40. Bxg5 {[%clk 0:00:07.6]} 40... Rxa3 {[%clk 0:00:11.8]} 41. f4 {[%clk
0:00:08.2]} 41... Ra4 {[%clk 0:00:11.4]} 42. f5+ {[%clk 0:00:08.7]} 42... Kd7
{[%clk 0:00:11.4]} 43. Kd5 {[%clk 0:00:08.1]} 43... Ne7+ {[%clk 0:00:08]} 44.
Kd4 {[%clk 0:00:08.7]} 44... Nc8 {[%clk 0:00:06.7]} 45. f6 {[%clk 0:00:04.4]}
45... gxf6 {[%clk 0:00:06.5]} 46. Bxf6 {[%clk 0:00:05.3]} 46... Nd6 {[%clk
0:00:07.1]} 47. Kd5 {[%clk 0:00:05.7]} 47... Rxc4 {[%clk 0:00:06.7]} 48. Bd4
{[%clk 0:00:06.3]} 48... Rc1 {[%clk 0:00:04.9]} 49. g5 {[%clk 0:00:05.8]} 49...
Rc2 {[%clk 0:00:05.1]} 50. g6 {[%clk 0:00:05.6]} 50... Rg2 {[%clk 0:00:05.1]}
51. g7 {[%clk 0:00:06]} 51... Nf5 {[%clk 0:00:05.3]} 0-1

[Event "Early-Titled-Tuesday-Blitz-September-05-2023"]
[Site "Chess.com"]
[Date "2023.09.05"]
[Round "5"]
[White "guillembaches"]
[Black "m_ezat"]
[Result "1/2-1/2"]
[WhiteElo "2513"]
[BlackElo "2703"]
[TimeControl "180+1"]
[EndTime "8:55:10 PDT"]
[Termination "Game drawn by stalemate"]

1. e4 {[%clk 0:03:00.9]} 1... e5 {[%clk 0:02:49.4]} 2. Nf3 {[%clk 0:03:01]} 2...
Nc6 {[%clk 0:02:48.9]} 3. Nc3 {[%clk 0:03:01.6]} 3... Nf6 {[%clk 0:02:48.3]} 4.
d4 {[%clk 0:03:02.2]} 4... exd4 {[%clk 0:02:47.1]} 5. Nxd4 {[%clk 0:03:02.8]}
5... Bb4 {[%clk 0:02:47.3]} 6. Nxc6 {[%clk 0:03:03.3]} 6... bxc6 {[%clk
0:02:47.5]} 7. Bd3 {[%clk 0:03:03.6]} 7... O-O {[%clk 0:02:46.9]} 8. O-O {[%clk
0:03:02.2]} 8... d5 {[%clk 0:02:45.9]} 9. Bd2 {[%clk 0:03:02.5]} 9... Re8 {[%clk
0:02:34.5]} 10. Nxd5 {[%clk 0:03:01.6]} 10... cxd5 {[%clk 0:02:09.2]} 11. Bxb4
{[%clk 0:03:00.6]} 11... dxe4 {[%clk 0:02:06.5]} 12. Bb5 {[%clk 0:03:00.4]}
12... Bd7 {[%clk 0:02:04.4]} 13. Bxd7 {[%clk 0:02:59.7]} 13... Qxd7 {[%clk
0:02:04]} 14. Qxd7 {[%clk 0:02:59.3]} 14... Nxd7 {[%clk 0:02:03.9]} 15. Rfd1
{[%clk 0:02:58.3]} 15... Nb6 {[%clk 0:02:03.7]} 16. b3 {[%clk 0:02:52]} 16...
Rad8 {[%clk 0:02:01.9]} 17. c4 {[%clk 0:02:47.5]} 17... Nd7 {[%clk 0:01:56.2]}
18. Rd5 {[%clk 0:02:33.7]} 18... Ne5 {[%clk 0:01:55.9]} 19. Ra5 {[%clk
0:02:19.3]} 19... Nd3 {[%clk 0:01:52.8]} 20. Bc5 {[%clk 0:02:08.4]} 20... a6
{[%clk 0:01:45]} 21. Be3 {[%clk 0:02:03.3]} 21... Re6 {[%clk 0:01:44.4]} 22. Rd1
{[%clk 0:01:52.2]} 22... h6 {[%clk 0:01:42.9]} 23. h4 {[%clk 0:01:49.2]} 23...
Kh7 {[%clk 0:01:40.8]} 24. Kf1 {[%clk 0:01:42.1]} 24... Rde8 {[%clk 0:01:37.4]}
25. Ke2 {[%clk 0:01:40.2]} 25... Rd6 {[%clk 0:01:34.1]} 26. g3 {[%clk
0:01:32.5]} 26... g6 {[%clk 0:01:32.7]} 27. c5 {[%clk 0:01:17.6]} 27... Rc6
{[%clk 0:01:27.7]} 28. a3 {[%clk 0:01:05]} 28... Re7 {[%clk 0:01:01.5]} 29. b4
{[%clk 0:00:50.7]} 29... f5 {[%clk 0:01:01.2]} 30. b5 {[%clk 0:00:48]} 30...
axb5 {[%clk 0:01:00.7]} 31. Rxb5 {[%clk 0:00:48.1]} 31... Ra6 {[%clk 0:01:00.7]}
32. Rb3 {[%clk 0:00:44.8]} 32... c6 {[%clk 0:00:45.9]} 33. Ra1 {[%clk
0:00:43.9]} 33... Rea7 {[%clk 0:00:42.4]} 34. Bd4 {[%clk 0:00:40.1]} 34... Ra4
{[%clk 0:00:37.5]} 35. Ke3 {[%clk 0:00:37.2]} 35... g5 {[%clk 0:00:36.7]} 36.
hxg5 {[%clk 0:00:35.8]} 36... hxg5 {[%clk 0:00:36.3]} 37. Rb8 {[%clk 0:00:35.4]}
37... Ra8 {[%clk 0:00:30.9]} 38. Rb6 {[%clk 0:00:27.1]} 38... Re8 {[%clk
0:00:28.3]} 39. Rh1+ {[%clk 0:00:26]} 39... Kg8 {[%clk 0:00:28.3]} 40. Rh8+
{[%clk 0:00:22.5]} 40... Kf7 {[%clk 0:00:28.4]} 41. Rb7+ {[%clk 0:00:22.9]}
41... Kg6 {[%clk 0:00:28.1]} 42. Rxe8 {[%clk 0:00:23]} 42... Rxa3 {[%clk
0:00:28.4]} 43. Ke2 {[%clk 0:00:22.3]} 43... Ra2+ {[%clk 0:00:27.4]} 44. Kd1
{[%clk 0:00:21.7]} 44... f4 {[%clk 0:00:25.7]} 45. gxf4 {[%clk 0:00:20.3]} 45...
gxf4 {[%clk 0:00:25.4]} 46. Rxe4 {[%clk 0:00:20.5]} 46... Kf5 {[%clk 0:00:24.7]}
47. f3 {[%clk 0:00:20.2]} 47... Ra3 {[%clk 0:00:13.6]} 48. Rf7+ {[%clk
0:00:19.6]} 48... Kg5 {[%clk 0:00:13.4]} 49. Rg7+ {[%clk 0:00:19.7]} 49... Kf5
{[%clk 0:00:13]} 50. Rg8 {[%clk 0:00:19]} 50... Ra1+ {[%clk 0:00:05.4]} 51. Kc2
{[%clk 0:00:18.2]} 51... Ra2+ {[%clk 0:00:05.8]} 52. Kxd3 {[%clk 0:00:18]} 52...
Rd2+ {[%clk 0:00:05.7]} 53. Kc3 {[%clk 0:00:15.3]} 53... Rc2+ {[%clk 0:00:05.9]}
54. Kb3 {[%clk 0:00:15]} 54... Rb2+ {[%clk 0:00:05.7]} 55. Bxb2 {[%clk
0:00:13.9]} 1/2-1/2

[Event "Early-Titled-Tuesday-Blitz-September-05-2023"]
[Site "Chess.com"]
[Date "2023.09.05"]
[Round "5"]
[White "Russian_berezka"]
[Black "andrzej"]
[Result "1-0"]
[WhiteElo "2559"]
[BlackElo "2384"]
[TimeControl "180+1"]
[EndTime "8:55:15 PDT"]
[Termination "Russian_berezka won by checkmate"]

1. c4 {[%clk 0:03:00.9]} 1... e6 {[%clk 0:02:58.7]} 2. Nc3 {[%clk 0:03:00.6]}
2... d5 {[%clk 0:02:59.2]} 3. d4 {[%clk 0:03:00.4]} 3... Nf6 {[%clk 0:02:59.6]}
4. cxd5 {[%clk 0:03:00.7]} 4... exd5 {[%clk 0:02:59.9]} 5. Bg5 {[%clk
0:03:00.9]} 5... c6 {[%clk 0:02:59.4]} 6. e3 {[%clk 0:03:00.7]} 6... h6 {[%clk
0:02:59.2]} 7. Bh4 {[%clk 0:02:58.6]} 7... Be7 {[%clk 0:02:59.2]} 8. Bd3 {[%clk
0:02:56.7]} 8... O-O {[%clk 0:02:59.2]} 9. Nge2 {[%clk 0:02:56.1]} 9... Re8
{[%clk 0:02:59.1]} 10. Bg3 {[%clk 0:02:50.9]} 10... Nbd7 {[%clk 0:02:36.5]} 11.
h3 {[%clk 0:02:50]} 11... Bf8 {[%clk 0:02:25.7]} 12. O-O {[%clk 0:02:48.8]}
12... Ne4 {[%clk 0:02:25.3]} 13. Nxe4 {[%clk 0:02:36.4]} 13... dxe4 {[%clk
0:02:25.3]} 14. Bc4 {[%clk 0:02:24.2]} 14... Nb6 {[%clk 0:02:25]} 15. Bb3 {[%clk
0:02:24]} 15... a5 {[%clk 0:02:24.8]} 16. Nc3 {[%clk 0:02:22]} 16... Bd6 {[%clk
0:02:15]} 17. Bxd6 {[%clk 0:02:17.4]} 17... Qxd6 {[%clk 0:02:15.9]} 18. a3
{[%clk 0:02:08.5]} 18... g6 {[%clk 0:01:53.3]} 19. f3 {[%clk 0:01:51.3]} 19...
exf3 {[%clk 0:01:40.5]} 20. Qxf3 {[%clk 0:01:52.2]} 20... Rf8 {[%clk 0:01:06.3]}
21. Ne4 {[%clk 0:01:42]} 21... Qe7 {[%clk 0:01:06.3]} 22. Nc5 {[%clk 0:01:11.1]}
22... Kg7 {[%clk 0:01:03.1]} 23. e4 {[%clk 0:01:08.9]} 23... a4 {[%clk
0:00:55.2]} 24. Ba2 {[%clk 0:01:08.4]} 24... Nd7 {[%clk 0:00:55]} 25. Nd3 {[%clk
0:01:02.5]} 25... Qd6 {[%clk 0:00:41]} 26. Qf2 {[%clk 0:00:49.5]} 26... Qe7
{[%clk 0:00:25.8]} 27. e5 {[%clk 0:00:49.1]} 27... Nb6 {[%clk 0:00:21]} 28. Nc5
{[%clk 0:00:36.7]} 28... Bf5 {[%clk 0:00:14.3]} 29. g4 {[%clk 0:00:33.4]} 29...
Be6 {[%clk 0:00:14.2]} 30. Qf6+ {[%clk 0:00:31.5]} 30... Qxf6 {[%clk 0:00:13.9]}
31. exf6+ {[%clk 0:00:32.4]} 31... Kh7 {[%clk 0:00:11.4]} 32. Bxe6 {[%clk
0:00:30.2]} 32... fxe6 {[%clk 0:00:11.7]} 33. Nxe6 {[%clk 0:00:31.1]} 33... Rf7
{[%clk 0:00:12.2]} 34. h4 {[%clk 0:00:27.1]} 34... Nc4 {[%clk 0:00:07.4]} 35.
Rf2 {[%clk 0:00:22.6]} 35... Re8 {[%clk 0:00:07.9]} 36. Re1 {[%clk 0:00:20.5]}
36... Nd6 {[%clk 0:00:06.7]} 37. Kf1 {[%clk 0:00:18.3]} 37... Rc8 {[%clk
0:00:05.7]} 38. Nc5 {[%clk 0:00:09.8]} 38... b6 {[%clk 0:00:05.6]} 39. Ne4
{[%clk 0:00:09.1]} 39... Nc4 {[%clk 0:00:04.9]} 40. Ng3 {[%clk 0:00:08.1]} 40...
c5 {[%clk 0:00:03.9]} 41. dxc5 {[%clk 0:00:04.9]} 41... Rxc5 {[%clk 0:00:04.3]}
42. Re7 {[%clk 0:00:05.5]} 42... Rc7 {[%clk 0:00:04.9]} 43. Rxc7 {[%clk
0:00:04.6]} 43... Rxc7 {[%clk 0:00:05.4]} 44. f7 {[%clk 0:00:05.4]} 44... Ne3+
{[%clk 0:00:03.1]} 45. Ke2 {[%clk 0:00:03.6]} 45... Re7 {[%clk 0:00:02.3]} 46.
f8=Q {[%clk 0:00:03.4]} 46... Nd5+ {[%clk 0:00:02.9]} 47. Kd3 {[%clk 0:00:03.3]}
47... Nf4+ {[%clk 0:00:03]} 48. Qxf4 {[%clk 0:00:02.7]} 48... Rd7+ {[%clk
0:00:03.9]} 49. Ke3 {[%clk 0:00:03]} 49... Re7+ {[%clk 0:00:04.3]} 50. Kf3
{[%clk 0:00:03.5]} 50... Kg8 {[%clk 0:00:04.7]} 51. Kg2 {[%clk 0:00:04]} 51...
Re8 {[%clk 0:00:04.7]} 52. Qf7+ {[%clk 0:00:04.3]} 52... Kh8 {[%clk 0:00:05.6]}
53. Qxe8+ {[%clk 0:00:04.7]} 53... Kg7 {[%clk 0:00:06.5]} 54. Rf7# {[%clk
0:00:05.1]} 1-0

[Event "Early-Titled-Tuesday-Blitz-September-05-2023"]
[Site "Chess.com"]
[Date "2023.09.05"]
[Round "5"]
[White "Thecourseoisildur"]
[Black "merinasian"]
[Result "1-0"]
[WhiteElo "2593"]
[BlackElo "2434"]
[TimeControl "180+1"]
[EndTime "8:55:17 PDT"]
[Termination "Thecourseoisildur won by resignation"]

1. e4 {[%clk 0:03:00.9]} 1... d6 {[%clk 0:02:57.8]} 2. d4 {[%clk 0:02:51.6]}
2... Nd7 {[%clk 0:02:55.7]} 3. Nf3 {[%clk 0:02:48]} 3... g6 {[%clk 0:02:54.7]}
4. Bc4 {[%clk 0:02:46.4]} 4... e6 {[%clk 0:02:54.4]} 5. h4 {[%clk 0:02:40.9]}
5... h6 {[%clk 0:02:51.9]} 6. Nc3 {[%clk 0:02:37.7]} 6... Bg7 {[%clk 0:02:50]}
7. Qe2 {[%clk 0:02:35.8]} 7... a6 {[%clk 0:02:48.4]} 8. a4 {[%clk 0:02:34.7]}
8... b6 {[%clk 0:02:47]} 9. Be3 {[%clk 0:02:32.7]} 9... Bb7 {[%clk 0:02:45.5]}
10. O-O-O {[%clk 0:02:32.3]} 10... Ne7 {[%clk 0:02:28.5]} 11. Kb1 {[%clk
0:02:23.8]} 11... Nf6 {[%clk 0:02:21.5]} 12. Bc1 {[%clk 0:02:22.4]} 12... d5
{[%clk 0:02:06.7]} 13. exd5 {[%clk 0:02:18.2]} 13... Nexd5 {[%clk 0:02:06.4]}
14. Nxd5 {[%clk 0:02:15.7]} 14... Nxd5 {[%clk 0:02:03.3]} 15. c3 {[%clk
0:02:02.4]} 15... Qd7 {[%clk 0:01:43.1]} 16. Bb3 {[%clk 0:01:47.8]} 16... O-O-O
{[%clk 0:01:16.9]} 17. Ne5 {[%clk 0:01:39.8]} 17... Qe7 {[%clk 0:01:16.6]} 18.
Bc4 {[%clk 0:01:32.7]} 18... Bxe5 {[%clk 0:00:56.8]} 19. dxe5 {[%clk 0:01:30.6]}
19... a5 {[%clk 0:00:54.4]} 20. f4 {[%clk 0:01:14.8]} 20... Kb8 {[%clk
0:00:49.9]} 21. h5 {[%clk 0:01:12.2]} 21... gxh5 {[%clk 0:00:47.1]} 22. Rxh5
{[%clk 0:01:08.8]} 22... Qd7 {[%clk 0:00:42.8]} 23. Rd4 {[%clk 0:00:47.1]} 23...
Rhg8 {[%clk 0:00:40.1]} 24. Rxh6 {[%clk 0:00:33.4]} 24... c5 {[%clk 0:00:37.7]}
25. Rd3 {[%clk 0:00:21.7]} 25... Qxa4 {[%clk 0:00:36.3]} 26. b3 {[%clk 0:00:18]}
26... Qc6 {[%clk 0:00:33.1]} 27. Rf3 {[%clk 0:00:04.5]} 27... a4 {[%clk
0:00:30.4]} 28. Bb5 {[%clk 0:00:03.9]} 28... Qc7 {[%clk 0:00:30.2]} 29. Bxa4
{[%clk 0:00:04.1]} 29... c4 {[%clk 0:00:20.5]} 30. Qxc4 {[%clk 0:00:02.1]} 30...
Rxg2 {[%clk 0:00:14.9]} 31. Qxc7+ {[%clk 0:00:02.4]} 31... Nxc7 {[%clk
0:00:14.5]} 32. Rfh3 {[%clk 0:00:01.9]} 32... Rg1 {[%clk 0:00:14.5]} 33. Rh8
{[%clk 0:00:02]} 33... Rxh8 {[%clk 0:00:13.4]} 34. Rxh8+ {[%clk 0:00:02.9]}
34... Ka7 {[%clk 0:00:13.8]} 35. Be8 {[%clk 0:00:03.1]} 35... Nd5 {[%clk
0:00:13.2]} 36. Bxf7 {[%clk 0:00:02.4]} 36... Nxc3+ {[%clk 0:00:13.3]} 37. Kc2
{[%clk 0:00:02.7]} 37... Ne4 {[%clk 0:00:11.9]} 38. Be3 {[%clk 0:00:03.1]} 38...
Rg2+ {[%clk 0:00:10.4]} 39. Kd1 {[%clk 0:00:03.4]} 39... Nc5 {[%clk 0:00:10.3]}
40. Bxc5 {[%clk 0:00:03.4]} 40... bxc5 {[%clk 0:00:10.1]} 41. Bxe6 {[%clk
0:00:04.3]} 41... Rg1+ {[%clk 0:00:10.3]} 42. Ke2 {[%clk 0:00:04.5]} 42... Rg2+
{[%clk 0:00:10.2]} 43. Kf1 {[%clk 0:00:03.3]} 43... Rb2 {[%clk 0:00:09.9]} 44.
f5 {[%clk 0:00:03.5]} 44... Rb1+ {[%clk 0:00:09.1]} 45. Kf2 {[%clk 0:00:03.7]}
45... Rb2+ {[%clk 0:00:08.7]} 46. Kg3 {[%clk 0:00:04.6]} 46... Re2 {[%clk
0:00:08.2]} 47. Kf4 {[%clk 0:00:04.9]} 47... Re4+ {[%clk 0:00:07.8]} 48. Kg5
{[%clk 0:00:05.3]} 48... Rxe5 {[%clk 0:00:08.3]} 49. Kf6 {[%clk 0:00:05.7]}
49... Re1 {[%clk 0:00:08.3]} 50. Rh7 {[%clk 0:00:02.2]} 50... Kb6 {[%clk
0:00:08.7]} 51. Re7 {[%clk 0:00:02.3]} 51... Rf1 {[%clk 0:00:08.6]} 52. Bc4
{[%clk 0:00:01.9]} 52... Be4 {[%clk 0:00:08.7]} 53. Rxe4 {[%clk 0:00:01.8]}
53... Rxf5+ {[%clk 0:00:07.1]} 54. Kxf5 {[%clk 0:00:01.8]} 54... Ka5 {[%clk
0:00:07.5]} 55. Re8 {[%clk 0:00:01.2]} 55... Kb4 {[%clk 0:00:08.4]} 56. Ke4
{[%clk 0:00:01.9]} 1-0

[Event "Early-Titled-Tuesday-Blitz-September-05-2023"]
[Site "Chess.com"]
[Date "2023.09.05"]
[Round "5"]
[White "Apocalyps999"]
[Black "PavelChernomordik"]
[Result "0-1"]
[WhiteElo "2303"]
[BlackElo "2503"]
[TimeControl "180+1"]
[EndTime "8:55:18 PDT"]
[Termination "PavelChernomordik won by checkmate"]

1. e4 {[%clk 0:03:00.9]} 1... g6 {[%clk 0:02:59.3]} 2. d4 {[%clk 0:02:59.3]}
2... Bg7 {[%clk 0:02:59.1]} 3. Nc3 {[%clk 0:02:57.9]} 3... d6 {[%clk 0:02:58.8]}
4. Be3 {[%clk 0:02:57.9]} 4... a6 {[%clk 0:02:58.7]} 5. Qd2 {[%clk 0:02:57.8]}
5... b5 {[%clk 0:02:58.4]} 6. f4 {[%clk 0:02:52.5]} 6... Bb7 {[%clk 0:02:55.9]}
7. Nf3 {[%clk 0:02:51.7]} 7... e6 {[%clk 0:02:52.5]} 8. Bd3 {[%clk 0:02:51]}
8... Nd7 {[%clk 0:02:49]} 9. h4 {[%clk 0:02:49.6]} 9... Ngf6 {[%clk 0:02:31.4]}
10. a4 {[%clk 0:02:22.5]} 10... b4 {[%clk 0:02:30.2]} 11. Ne2 {[%clk 0:02:21.6]}
11... Bxe4 {[%clk 0:02:27.5]} 12. Bxe4 {[%clk 0:02:17.4]} 12... Nxe4 {[%clk
0:02:26.3]} 13. Qxb4 {[%clk 0:02:18.3]} 13... Rb8 {[%clk 0:02:25.6]} 14. Qa3
{[%clk 0:02:18.1]} 14... Ndf6 {[%clk 0:02:18.9]} 15. Ng5 {[%clk 0:02:06.6]}
15... h5 {[%clk 0:02:09.1]} 16. Nxe4 {[%clk 0:02:00.7]} 16... Nxe4 {[%clk
0:02:08.5]} 17. b4 {[%clk 0:01:56.9]} 17... c5 {[%clk 0:01:56]} 18. bxc5 {[%clk
0:01:52.1]} 18... dxc5 {[%clk 0:01:55.5]} 19. Rd1 {[%clk 0:01:44.4]} 19... Qa5+
{[%clk 0:01:52]} 20. Kf1 {[%clk 0:01:23.8]} 20... O-O {[%clk 0:01:41.6]} 21.
dxc5 {[%clk 0:01:20.2]} 21... Rfd8 {[%clk 0:01:37.6]} 22. Rxd8+ {[%clk
0:00:16.1]} 22... Rxd8 {[%clk 0:01:26.8]} 23. g3 {[%clk 0:00:16]} 23... Rd1+
{[%clk 0:01:21.1]} 24. Kg2 {[%clk 0:00:15.9]} 24... Rxh1 {[%clk 0:01:19.9]} 25.
Kxh1 {[%clk 0:00:16.5]} 25... Qe1+ {[%clk 0:01:19.9]} 26. Ng1 {[%clk 0:00:16.8]}
26... Qxg3 {[%clk 0:01:13]} 27. Qd3 {[%clk 0:00:15.8]} 27... Qxh4+ {[%clk
0:01:10.4]} 28. Kg2 {[%clk 0:00:14.2]} 28... Qg4+ {[%clk 0:01:07.2]} 29. Kf1
{[%clk 0:00:04.7]} 29... Ng3+ {[%clk 0:01:05.2]} 30. Ke1 {[%clk 0:00:05.1]}
30... Nf5 {[%clk 0:00:57.6]} 31. Bf2 {[%clk 0:00:04]} 31... Qxf4 {[%clk
0:00:55.2]} 32. Nh3 {[%clk 0:00:03.9]} 32... Qxa4 {[%clk 0:00:47.9]} 33. Ng5
{[%clk 0:00:02.1]} 33... Bf6 {[%clk 0:00:37.9]} 34. Ne4 {[%clk 0:00:03]} 34...
Bd4 {[%clk 0:00:33]} 35. Bxd4 {[%clk 0:00:02.9]} 35... Nxd4 {[%clk 0:00:32.3]}
36. Nf6+ {[%clk 0:00:01.9]} 36... Kg7 {[%clk 0:00:31.6]} 37. Ne4 {[%clk
0:00:02.8]} 37... Nxc2+ {[%clk 0:00:29]} 38. Kd2 {[%clk 0:00:01.1]} 38... Nd4
{[%clk 0:00:23.3]} 39. Qc3 {[%clk 0:00:02]} 39... e5 {[%clk 0:00:21.2]} 40. Ke3
{[%clk 0:00:02.9]} 40... Nc6 {[%clk 0:00:18.6]} 41. Nd6 {[%clk 0:00:02.5]} 41...
Qf4+ {[%clk 0:00:17.4]} 42. Ke2 {[%clk 0:00:02.6]} 42... h4 {[%clk 0:00:15.6]}
43. Nc4 {[%clk 0:00:01.8]} 43... Qg4+ {[%clk 0:00:13.6]} 44. Qf3 {[%clk
0:00:01.5]} 44... Qxc4+ {[%clk 0:00:12.8]} 45. Kf2 {[%clk 0:00:01.2]} 45...
Qxc5+ {[%clk 0:00:12.5]} 46. Kg2 {[%clk 0:00:01]} 46... Qc2+ {[%clk 0:00:12]}
47. Kh3 {[%clk 0:00:01.9]} 47... Qf5+ {[%clk 0:00:11.1]} 48. Kxh4 {[%clk
0:00:02.8]} 48... Qxf3 {[%clk 0:00:10.3]} 49. Kg5 {[%clk 0:00:02.6]} 49... f6+
{[%clk 0:00:10.3]} 50. Kh4 {[%clk 0:00:03.5]} 50... g5# {[%clk 0:00:10.2]} 0-1